bitfinex-derivatives/quotes_BNBF0:USTF0_20250424
["timestamp","ask_amount","ask_price","bid_price","bid_amount"]
[1745496674918,1.27513219,597.87,596.07,0.62671158]
[1745496675121,1.27513219,597.87,596.08,0.62676737]
[1745496675325,0.2915855,597.46,596.01,1.063]
[1745496675519,1.27513219,597.87,596.02,0.62683516]
[1745496675718,1.27513219,597.87,596.03,0.62683516]
[1745496675924,1.27513219,597.87,596.04,0.62683516]
[1745496676123,1.27513219,597.87,596.05,0.62683516]
[1745496676321,0.2916026,597.86,596.06,0.62683516]
[1745496676518,0.2916026,597.86,596.07,0.62683516]
[1745496676719,0.2916026,597.86,596.08,0.62683516]
[1745496676923,0.2916026,597.86,596.09,0.6268847]
[1745496677221,0.2916026,597.86,596.06,1.292]
[1745496677924,1.27513219,597.88,596.06,1.292]
[1745496678424,1.27513219,597.88,596.07,0.62700729]
[1745496678625,1.27513219,597.88,596.06,1.292]
[1745496679121,0.29159771,597.87,596.06,1.292]
[1745496680626,1.27513219,597.63,596.06,1.292]
[1745496681321,0.29162826,597.62,596.06,1.292]
[1745496683927,1.27513219,598.14,596.06,1.292]
[1745496684122,0.29157328,597.61,596.06,1.292]
[1745496684531,1.27513219,598.14,596.06,1.292]
[1745496684928,1.27513219,598.14,596.06,2.63]
[1745496685424,0.29158305,598.13,596.06,2.63]
[1745496686228,1.27513219,598.11,596.06,2.63]
[1745496687327,0.29158672,598.1,596.06,2.63]
[1745496688323,1.27513219,597.45,596.06,2.63]
[1745496690224,0.29166737,597.44,596.06,2.63]
[1745496693032,1.27513219,597.45,596.06,2.63]
[1745496694234,0.29166737,597.44,596.06,2.63]
[1745496694532,0.29166737,597.44,596.06,4.312]
[1745496695936,1.27513219,597.45,596.06,4.312]
[1745496696237,0.29166737,597.43,596.06,4.312]
[1745496696937,1.27513219,597.26,596.06,4.312]
[1745496699538,0.29169059,597.34,596.06,4.312]
[1745496701942,1.27513219,597.44,596.06,4.312]
[1745496703144,1.27513219,597.44,596.06,5.529]
[1745496703344,0.29166859,597.43,596.06,5.529]
[1745496704744,0.29166859,597.43,596.07,0.62767337]
[1745496704938,0.29166859,597.43,596.06,5.529]
[1745496705139,0.29166859,597.43,596.07,0.62765734]
[1745496705340,0.29166859,597.43,596.06,5.529]
[1745496705539,0.29166859,597.43,596.07,0.62768284]
[1745496705842,0.29166859,597.43,596.06,5.529]
[1745496706039,0.29166859,597.43,596.07,0.62768352]
[1745496706239,0.29166859,597.43,596.08,0.62768357]
[1745496706544,0.29166859,597.43,596.09,0.6276976]
[1745496706844,0.29166859,597.43,596.1,0.6276976]
[1745496707042,0.29166859,597.43,596.11,0.6276976]
[1745496707243,0.29166859,597.43,596.12,0.6276976]
[1745496707448,0.29166859,597.43,596.06,5.529]
[1745496707449,0.29166859,597.43,596.13,0.6276976]
[1745496707743,0.29166859,597.43,596.14,0.6276976]
[1745496707943,1.27513219,597.66,596.15,0.6276976]
[1745496708144,1.27513219,597.66,596.06,5.529]
[1745496708348,1.27513219,597.66,596.07,0.93566797]
[1745496708541,1.27513219,597.66,596.08,0.62763064]
[1745496708744,1.27513219,597.66,596.09,0.62763064]
[1745496708944,1.27513219,597.66,596.1,0.62755759]
[1745496709145,1.27513219,597.66,596.11,0.62755777]
[1745496709351,0.29158672,597.65,596.12,0.62755777]
[1745496709546,0.29158672,597.65,596.13,0.62755777]
[1745496709746,0.29158672,597.65,596.14,0.93554932]
[1745496709987,0.29158672,597.65,596.15,0.62755777]
[1745496710149,1.27513219,597.27,596.16,0.93554932]
[1745496710449,1.27513219,597.27,596.17,0.62755777]
[1745496710648,1.27513219,597.27,596.18,0.93554027]
[1745496710847,1.27513219,597.27,596.19,0.93554027]
[1745496711047,1.27513219,597.27,596.2,0.93554027]
[1745496711244,1.27513219,597.27,596.21,0.93554027]
[1745496711452,1.27513219,597.27,596.22,0.62755777]
[1745496711649,1.27513219,597.27,596.23,0.62755777]
[1745496711852,1.27513219,597.27,596.24,0.62755777]
[1745496712086,1.27513219,597.27,596.06,3.847]
[1745496712350,1.27513219,597.27,596.07,1.22667231]
[1745496712558,1.27513219,597.27,596.08,0.93506482]
[1745496712751,1.27513219,597.27,596.09,0.93506482]
[1745496712953,1.56673968,597.59,596.1,0.93506482]
[1745496713246,1.56673968,597.59,596.07,0.29160749]
[1745496713247,1.56673968,597.59,596.11,0.93506482]
[1745496713451,1.56673968,597.59,596.12,0.93506482]
[1745496713751,1.56673968,597.59,596.13,0.93506482]
[1745496714053,1.27513219,597.59,596.14,0.93506482]
[1745496714353,1.27513219,597.59,596.15,0.93506482]
[1745496714551,1.27513219,597.59,596.16,0.62708802]
[1745496714745,1.27513219,597.59,596.17,0.93506482]
[1745496714946,1.27513219,597.59,596.18,0.93506482]
[1745496715148,1.27513219,597.59,596.19,0.62708802]
[1745496715348,1.27513219,597.59,596.2,0.62708802]
[1745496715555,1.27513219,597.59,596.21,0.62708802]
[1745496715748,1.27513219,597.59,596.22,0.62655657]
[1745496715948,1.27513219,597.59,596.11,0.29157572]
[1745496716152,0.2915745,597.6,596.12,0.93451894]
[1745496716349,0.2915745,597.6,596.13,0.93451894]
[1745496716547,0.2915745,597.6,596.14,0.93451894]
[1745496716750,0.2915745,597.6,596.15,0.93451894]
[1745496716948,1.27513219,597.7,596.16,0.93451894]
[1745496717154,1.27513219,597.7,596.17,0.93451894]
[1745496717353,1.27513219,597.7,596.18,0.93451894]
[1745496717653,1.27513219,597.7,596.19,0.62655696]
[1745496717947,1.27513219,597.7,596.2,0.62630833]
[1745496718149,1.27513219,597.7,596.21,0.62630833]
[1745496718463,0.29154519,597.69,596.22,0.62630833]
[1745496718648,0.29154519,597.69,596.15,1.586]
[1745496718850,0.29154519,597.69,596.16,0.93415474]
[1745496719152,0.29154519,597.69,596.17,0.93415474]
[1745496719349,0.29154519,597.69,596.18,0.93415474]
[1745496719553,0.29154519,597.69,596.19,0.93415474]
[1745496719754,0.29154519,597.69,596.2,0.62620031]
[1745496719957,1.27513219,597.77,596.21,0.62620031]
[1745496720155,1.27513219,597.77,596.22,0.62620031]
[1745496720363,1.27513219,597.77,596.15,1.586]
[1745496720554,1.27513219,597.77,596.16,0.93406293]
[1745496720753,1.27513219,597.77,596.17,0.93406293]
[1745496720951,1.27513219,597.77,596.18,0.93406293]
[1745496721251,0.29153908,597.76,596.19,0.6261064]
[1745496721590,0.29153908,597.76,596.15,1.87753908]
[1745496721591,0.29153908,597.76,596.2,0.6261064]
[1745496721756,0.29153908,597.76,596.21,0.62605676]
[1745496721950,0.29153908,597.76,596.22,0.62605676]
[1745496722152,0.29153908,597.76,596.23,0.62602723]
[1745496722357,0.29153908,597.76,596.15,1.87753908]
[1745496722555,0.29153908,597.76,596.16,0.6260264]
[1745496722753,0.29153908,597.76,596.17,0.6260264]
[1745496722953,1.27513219,597.83,596.18,0.6260264]
[1745496723261,1.27513219,597.89,596.19,0.6260264]
[1745496723564,1.27513219,597.89,596.2,0.6260264]
[1745496723754,1.27513219,597.89,596.21,0.6260264]
[1745496723953,1.27513219,597.89,596.22,0.6260264]
[1745496724156,1.27513219,597.89,596.15,1.586]
[1745496724358,0.29153176,597.88,596.17,0.29153176]
[1745496724660,0.29153176,597.88,596.18,0.62596533]
[1745496724852,0.29153176,597.88,596.19,0.62596533]
[1745496725057,0.29153176,597.88,596.2,0.62596533]
[1745496725262,0.29153176,597.88,596.21,0.62596533]
[1745496725461,0.29153176,597.88,596.17,0.29153176]
[1745496725657,0.29153176,597.88,596.18,0.62595454]
[1745496725856,0.29153176,597.88,596.19,0.62595454]
[1745496726060,0.29153176,597.88,596.17,0.29153176]
[1745496726061,0.29153176,597.88,596.2,0.62595454]
[1745496726263,1.56666395,597.88,596.21,0.62595454]
[1745496726459,1.56666395,597.88,596.17,0.29153176]
[1745496726663,1.56666395,597.88,596.18,0.62589598]
[1745496726863,1.56666395,597.88,596.19,0.62589598]
[1745496727163,1.56666395,597.88,596.2,0.62589598]
[1745496727363,1.56666395,597.88,596.21,0.62589598]
[1745496727563,1.56666395,597.88,596.22,0.62589598]
[1745496727761,1.56666395,597.88,596.23,0.62583835]
[1745496727965,1.56666395,597.88,596.17,0.29153176]
[1745496728264,1.56666395,597.88,596.18,0.62582696]
[1745496728467,0.29153176,597.88,596.19,0.62582696]
[1745496728660,0.29153176,597.88,596.2,0.62582696]
[1745496728862,0.29153176,597.88,596.21,0.62582696]
[1745496729059,1.27513219,598.02,596.22,0.62582696]
[1745496729264,1.27513219,598.02,596.23,0.62582696]
[1745496729470,1.27513219,598.02,596.24,0.62582696]
[1745496729664,1.27513219,598.02,596.18,0.29151222]
[1745496730002,1.27513219,598.02,596.19,0.62566585]
[1745496730164,1.27513219,598.02,596.2,0.62566585]
[1745496730366,0.29151832,598.01,596.21,0.62566585]
[1745496730563,0.29151832,598.01,596.22,0.62566585]
[1745496730761,0.29151832,598.01,596.18,0.29151222]
[1745496730963,0.29151832,598.01,596.19,0.6255907]
[1745496731167,0.29151832,598.01,596.2,0.6255907]
[1745496731367,0.29151832,598.01,596.21,0.6255907]
[1745496731563,0.29151832,598.01,596.18,1.31951222]
[1745496731564,0.29151832,598.01,596.22,0.6255907]
[1745496731764,0.29151832,598.01,596.18,1.31951222]
[1745496731967,1.27513219,598.03,596.19,0.62552186]
[1745496732262,1.27513219,598.03,596.2,0.62552186]
[1745496732465,1.27513219,598.03,596.21,0.62552186]
[1745496732662,1.27513219,598.03,596.22,0.62552186]
[1745496732868,1.27513219,598.03,596.18,1.028]
[1745496733072,1.27513219,598.03,596.19,0.6254537]
[1745496733273,0.29150856,598.02,596.2,0.6254537]
[1745496733473,0.29150856,598.02,596.21,0.6254537]
[1745496733773,0.29150856,598.02,596.22,0.6254537]
[1745496734073,0.29150856,598.02,596.19,0.29150856]
[1745496734266,0.29150856,598.02,596.2,0.62535916]
[1745496734473,0.29150856,598.02,596.21,0.62535916]
[1745496734674,0.29150856,598.02,596.19,0.29150856]
[1745496734870,0.29150856,598.02,596.2,0.6253384]
[1745496735070,1.27513219,598.03,596.21,0.6253384]
[1745496735293,1.27513219,598.03,596.18,1.028]
[1745496735470,1.27513219,598.03,596.19,0.6252894]
[1745496735671,1.27513219,598.03,596.2,0.6252894]
[1745496735872,1.27513219,598.03,596.18,1.028]
[1745496736070,1.27513219,598.03,596.19,0.62529362]
[1745496736272,0.291511,598.02,596.2,0.62529362]
[1745496736470,0.291511,598.02,596.19,0.291511]
[1745496736673,0.291511,598.02,596.2,0.62524841]
[1745496736874,0.291511,598.02,596.19,0.291511]
[1745496738177,1.27513219,598.1,596.18,1.028]
[1745496739187,1.27513219,598.06,596.18,1.028]
[1745496739498,1.27513219,598.06,596.19,0.29150489]
[1745496740279,1.27513219,598.06,596.2,1.29]
[1745496741477,1.27513219,598.06,596.21,1.228]
[1745496741975,1.27513219,597.97,596.21,1.228]
[1745496743383,1.27513219,597.97,596.22,0.30794585]
[1745496743581,1.27513219,597.97,596.22,1.87894585]
[1745496743780,1.27513219,597.97,596.23,0.30794585]
[1745496743983,1.27513219,597.97,596.22,1.571]
[1745496744191,1.27513219,597.84,596.22,1.571]
[1745496745285,0.29152443,597.83,596.22,1.571]
[1745496746799,0.29152443,597.83,596.23,1.087]
[1745496746986,1.27513219,597.84,596.23,1.087]
[1745496747281,1.27513219,597.61,596.23,1.087]
[1745496749389,1.27513219,597.73,596.23,1.087]
[1745496750289,0.2915513,597.72,596.23,1.087]
[1745496752989,1.27513219,597.75,596.23,1.087]
[1745496754286,0.29154885,597.74,596.23,1.087]
[1745496755994,1.27513219,597.75,596.23,1.087]
[1745496757295,0.29154885,597.74,596.23,1.087]
[1745496758998,1.27513219,597.75,596.23,1.087]
[1745496760000,1.27513219,597.75,596.24,1.186]
[1745496760397,0.29154885,597.74,596.25,0.30795312]
[1745496761305,0.29154885,597.74,596.24,1.186]
[1745496761502,0.29154885,597.74,596.25,0.93448065]
[1745496761696,0.29154885,597.74,596.26,0.30795583]
[1745496761901,0.29154885,597.74,596.25,0.30795583]
[1745496762102,1.27513219,597.75,596.26,0.30795583]
[1745496762297,1.27513219,597.75,596.24,1.186]
[1745496762498,1.27513219,597.75,596.25,0.30796373]
[1745496762803,1.27513219,597.7,596.25,0.30796373]
[1745496763305,0.29155374,597.69,596.25,0.30796373]
[1745496763904,0.29155374,597.69,596.24,1.186]
[1745496764106,0.29155374,597.69,596.25,0.93493282]
[1745496764300,0.29155374,597.69,596.26,0.93493282]
[1745496764603,0.29155374,597.69,596.27,0.62696864]
[1745496764804,0.29155374,597.69,596.28,0.62696864]
[1745496764999,1.27513219,597.39,596.24,1.186]
[1745496765201,1.27513219,597.39,596.25,0.62719705]
[1745496765504,1.27513219,597.39,596.26,0.62719705]
[1745496767004,0.29154885,597.68,596.26,0.62719705]
[1745496767005,1.27513219,597.51,596.26,0.62719705]
[1745496768600,1.27513219,597.49,596.26,0.62719705]
[1745496771506,1.27513219,597.5,596.26,0.62719705]
[1745496774019,1.27513219,597.5,596.27,1.619]
[1745496774314,1.27513219,597.5,596.28,0.62719705]
[1745496774611,1.27513219,597.58,596.28,0.62719705]
[1745496775312,0.29156351,597.57,596.28,0.62719705]
[1745496775813,0.29156351,597.57,596.28,2.30919705]
[1745496776008,0.29156351,597.57,596.29,0.62719705]
[1745496777011,1.27513219,597.58,596.3,0.62835602]
[1745496777210,1.27513219,597.58,596.31,0.62835602]
[1745496777411,1.27513219,597.58,596.32,0.62835602]
[1745496777610,2.16949574,598.18,596.28,1.682]
[1745496777611,1.27513219,597.57,596.33,0.62835602]
[1745496777807,1.27513219,597.57,596.28,1.682]
[1745496778013,1.27513219,597.57,596.29,0.62836523]
[1745496778313,0.29156473,597.56,596.3,0.62836523]
[1745496778512,0.29156473,597.56,596.31,0.62836523]
[1745496778709,0.29156473,597.56,596.32,0.62836523]
[1745496778915,0.29156473,597.56,596.33,0.6283592]
[1745496779113,0.29156473,597.56,596.28,1.682]
[1745496779412,0.29156473,597.56,596.29,0.62835693]
[1745496779612,0.29156473,597.56,596.3,0.62835693]
[1745496779814,1.27513219,597.55,596.31,0.62835693]
[1745496780114,1.27513219,597.55,596.28,1.682]
[1745496780413,1.27513219,597.55,596.29,0.62837683]
[1745496780614,1.27513219,597.55,596.3,0.6283771]
[1745496780813,1.27513219,597.55,596.31,0.62837709]
[1745496781120,1.27513219,597.55,596.32,0.62836957]
[1745496781345,1.27513219,597.55,596.28,1.682]
[1745496781512,1.27513219,597.55,596.29,0.62836532]
[1745496781713,1.27513219,597.55,596.3,0.62836532]
[1745496781913,1.27513219,597.55,596.31,0.62836532]
[1745496782110,1.27513219,597.55,596.32,0.62836532]
[1745496782409,1.27513219,597.55,596.33,0.62836532]
[1745496782613,1.27513219,597.55,596.34,0.62836532]
[1745496782914,1.27513219,597.55,596.35,0.62836532]
[1745496783115,2.16949574,598.14,596.28,2.954]
[1745496783116,1.27513219,598.2,596.36,0.62836532]
[1745496783316,1.27513219,598.2,596.28,2.954]
[1745496783612,1.27513219,598.2,596.29,0.62832011]
[1745496783816,1.27513219,598.2,596.3,0.62832011]
[1745496784015,1.27513219,598.2,596.31,0.62832011]
[1745496784211,0.29147071,598.19,596.32,0.62832011]
[1745496784411,0.29147071,598.19,596.33,0.62832011]
[1745496784611,0.29147071,598.19,596.34,0.62832011]
[1745496784914,0.29147071,598.19,596.35,0.62832011]
[1745496785111,0.29147071,598.19,596.36,0.62832011]
[1745496785315,0.29147071,598.19,596.28,2.954]
[1745496785515,0.29147071,598.19,596.29,0.62832171]
[1745496785715,0.29147071,598.19,596.3,0.62832171]
[1745496785913,1.27513219,598.3,596.31,0.62832171]
[1745496786115,1.27513219,598.3,596.32,0.62832171]
[1745496786316,0.29143776,598.18,596.33,0.62832171]
[1745496786513,0.29143776,598.18,596.34,0.62832171]
[1745496786714,1.27513219,598.3,596.35,0.62832171]
[1745496786917,1.27513219,598.3,596.36,0.62832171]
[1745496787220,1.27513219,598.3,596.37,2.29132171]
[1745496787419,1.27513219,598.3,596.38,0.62832171]
[1745496787614,1.27513219,597.95,596.39,0.62832171]
[1745496787817,1.27513219,597.95,596.4,0.62832171]
[1745496788020,1.27513219,597.95,596.41,0.62832171]
[1745496788213,1.27513219,597.95,596.42,0.62832171]
[1745496788418,0.29144996,597.94,596.43,0.62832171]
[1745496788617,0.29144996,597.94,596.44,0.62832171]
[1745496788863,0.29144996,597.94,596.45,0.62832171]
[1745496789018,1.27513219,597.95,596.46,0.62719981]
[1745496789323,1.27513219,597.95,596.37,1.663]
[1745496789528,1.27513219,597.95,596.38,0.62693689]
[1745496789716,1.27513219,597.95,596.39,0.62693689]
[1745496789917,1.27513219,597.95,596.4,0.62693689]
[1745496790116,1.27513219,597.95,596.41,0.62693689]
[1745496790322,0.29145118,597.94,596.42,0.62693689]
[1745496790523,0.29145118,597.94,596.37,1.663]
[1745496790726,0.29145118,597.94,596.38,0.62672386]
[1745496791024,0.29145118,597.94,596.39,0.62672386]
[1745496791218,0.29145118,597.94,596.4,0.62672386]
[1745496791428,0.29145118,597.94,596.37,1.663]
[1745496791722,0.29145118,597.94,596.38,0.62655006]
[1745496791919,1.27513219,598.12,596.39,0.62655006]
[1745496792219,1.27513219,598.12,596.37,1.663]
[1745496792423,0.29143044,598.11,596.38,0.62640792]
[1745496792618,0.29143044,598.11,596.39,0.62640491]
[1745496792822,0.29143044,598.11,596.37,1.663]
[1745496793119,0.29143044,598.11,596.38,0.62640491]
[1745496793329,0.29143044,598.11,596.39,0.93424813]
[1745496793528,0.29143044,598.11,596.4,0.30784322]
[1745496793822,0.29143044,598.11,596.38,0.30784322]
[1745496794022,0.29143044,598.11,596.39,0.30784322]
[1745496794223,0.29143044,598.11,596.38,0.30784322]
[1745496795228,0.29143044,598.11,596.39,0.62610894]
[1745496795426,0.29143044,598.11,596.4,0.93395216]
[1745496795627,0.29143044,598.11,596.37,1.663]
[1745496795628,1.27513219,597.97,596.41,0.62610894]
[1745496795829,1.27513219,597.97,596.42,0.93391965]
[1745496796022,1.27513219,597.97,596.43,0.30781071]
[1745496796329,1.27513219,597.97,596.38,0.30781071]
[1745496796431,1.27513219,597.97,596.39,0.93374211]
[1745496796622,1.27513219,597.97,596.4,0.93374211]
[1745496796822,1.27513219,597.97,596.41,0.30781071]
[1745496797024,1.27513219,597.97,596.38,0.30781071]
[1745496797222,1.27513219,597.97,596.39,0.62580678]
[1745496797423,1.27513219,597.97,596.4,0.93349008]
[1745496797721,1.27513219,597.97,596.41,0.93349008]
[1745496797922,1.27513219,597.97,596.42,0.93349008]
[1745496798126,1.27513219,597.97,596.43,0.93349008]
[1745496798334,0.291428,597.96,596.44,0.93349008]
[1745496798523,0.291428,597.96,596.45,0.93349008]
[1745496798828,0.291428,597.96,596.37,1.954428]
[1745496799026,0.291428,597.96,596.38,0.93338581]
[1745496799221,0.291428,597.96,596.39,0.93338581]
[1745496799425,0.291428,597.96,596.4,0.93338581]
[1745496799626,0.291428,597.96,596.41,0.93338581]
[1745496799826,0.291428,597.96,596.42,0.93327335]
[1745496800026,0.291428,597.96,596.43,0.93327335]
[1745496800221,0.291428,597.96,596.44,0.93327335]
[1745496800429,0.291428,597.96,596.44,0.30782555]
[1745496800623,0.291428,597.96,596.45,0.30782555]
[1745496800826,1.27513219,598.06,596.37,1.663]
[1745496801029,1.27513219,598.06,596.38,0.9331656]
[1745496801223,1.27513219,598.06,596.37,1.663]
[1745496801224,0.29142312,597.95,596.4,0.29142312]
[1745496801430,1.27513219,598.09,596.41,0.9331656]
[1745496801628,1.27513219,598.09,596.4,0.29142312]
[1745496802329,0.29145362,598.08,596.4,0.29142312]
[1745496803631,0.29145362,598.08,596.4,1.69442312]
[1745496803930,1.27513219,598.09,596.4,1.403]
[1745496804131,1.27513219,598.81,596.4,1.403]
[1745496805232,0.29136212,598.8,596.4,1.403]
[1745496805932,1.27513219,598.33,596.4,1.403]
[1745496807756,1.27513219,597.89,596.4,1.403]
[1745496808231,1.27513219,597.89,596.4,2.945]
[1745496808433,0.29145729,597.88,596.4,2.945]
[1745496810044,1.27513219,597.89,596.4,2.945]
[1745496810230,1.27513219,598.05,596.4,2.945]
[1745496811334,0.29143776,598.04,596.4,2.945]
[1745496812731,1.27513219,598.03,596.4,2.945]
[1745496813433,1.27513219,598.03,596.4,4.524]
[1745496814334,0.2914402,598.02,596.4,4.524]
[1745496816035,1.27513219,598.04,596.4,4.524]
[1745496817335,0.29143898,598.03,596.4,4.524]
[1745496817535,1.56657117,598.03,596.4,4.524]
[1745496818336,1.56657117,598.03,596.41,0.30785117]
[1745496819037,1.27513219,598.03,596.41,0.30785117]
[1745496820133,1.27513219,598.03,596.4,3.121]
[1745496820339,0.2914402,598.02,596.4,3.4124402]
[1745496820839,1.27513219,597.79,596.4,3.4124402]
[1745496822038,1.27513219,597.79,596.4,3.121]
[1745496822237,1.27513219,597.79,596.4,4.641]
[1745496822432,1.27513219,597.79,596.41,0.62513232]
[1745496822636,1.27513219,597.79,596.4,4.641]
[1745496822838,1.27513219,597.79,596.41,0.62513199]
[1745496823037,1.27513219,597.79,596.4,3.099]
[1745496823239,1.27513219,597.79,596.41,0.62514696]
[1745496823442,1.27513219,597.79,596.4,3.39044874]
[1745496823642,1.27513219,597.79,596.41,0.62515161]
[1745496823840,1.27513219,597.79,596.4,3.39044874]
[1745496824037,1.27513219,597.79,596.41,0.62515207]
[1745496824238,1.27513219,597.79,596.4,3.39044874]
[1745496824443,1.27513219,597.79,596.41,0.6251813]
[1745496824743,1.27513219,597.79,596.4,3.39044874]
[1745496824942,1.27513219,597.79,596.41,0.6251813]
[1745496825143,1.27513219,597.79,596.42,0.62519268]
[1745496825341,1.27513219,597.79,596.4,3.099]
[1745496825537,1.27513219,597.79,596.41,0.62520998]
[1745496825736,1.27513219,597.79,596.42,0.62520998]
[1745496825941,1.27513219,597.79,596.41,1.559]
[1745496826542,1.27513219,597.79,596.42,0.62523945]
[1745496826742,1.27513219,597.79,596.43,0.62523945]
[1745496826942,1.27513219,597.79,596.41,1.85044752]
[1745496827143,1.27513219,597.79,596.42,0.62521979]
[1745496827343,1.27513219,597.79,596.41,1.85044752]
[1745496827544,1.27513219,597.79,596.42,0.6252558]
[1745496827739,1.27513219,597.79,596.41,1.85044752]
[1745496827944,1.27513219,597.79,596.42,0.62525543]
[1745496828245,1.27513219,597.79,596.43,0.62530468]
[1745496828438,1.27513219,597.79,596.41,1.85044752]
[1745496828738,1.27513219,597.79,596.42,0.62529814]
[1745496828942,1.27513219,597.79,596.43,0.62529814]
[1745496829174,1.27513219,597.79,596.44,0.62529814]
[1745496829342,1.27513219,597.79,596.41,1.85044752]
[1745496829544,0.29144874,597.86,596.42,0.62532349]
[1745496829741,0.29144874,597.86,596.43,0.62532349]
[1745496829939,0.29144874,597.86,596.44,0.62532349]
[1745496830139,0.29144874,597.86,596.41,1.85044752]
[1745496830339,0.29144874,597.86,596.42,0.62537564]
[1745496830543,0.29144874,597.86,596.43,0.62537564]
[1745496830845,0.29144874,597.86,596.44,0.62537564]
[1745496831041,1.27513219,598.52,596.45,0.62542793]
[1745496831246,0.29135114,597.88,596.43,1.228]
[1745496831449,0.29135114,597.88,596.44,0.62542296]
[1745496831746,0.29135114,597.88,596.43,1.228]
[1745496832542,0.29115857,600.03,596.44,0.62546339]
[1745496832747,0.29115857,600.03,596.45,0.62546339]
[1745496833043,0.29115857,600.03,596.46,0.62546339]
[1745496833244,0.29115857,600.03,596.47,0.62546339]
[1745496833444,0.29115857,600.03,596.43,1.228]
[1745496833646,0.29115857,600.03,596.44,0.62552395]
[1745496833849,0.29115857,600.03,596.45,0.62552395]
[1745496834047,0.29115857,600.03,596.43,1.228]
[1745496834451,0.29105873,600.02,596.44,0.6256148]
[1745496834651,0.29105873,600.02,596.43,1.51905873]
[1745496835450,0.29106116,600.86,596.46,0.93343874]
[1745496835652,0.29106116,600.86,596.47,0.93343874]
[1745496835956,0.29106116,600.86,596.48,0.93343594]
[1745496836149,0.29106116,600.86,596.49,0.93343594]
[1745496836352,0.29106116,600.86,596.5,0.93343594]
[1745496836653,0.29106116,600.86,596.51,0.30781704]
[1745496836950,0.29106116,600.86,596.44,0.30781704]
[1745496837152,0.61455864,602.72,596.45,0.62581872]
[1745496837349,0.61455864,602.72,596.46,0.93363576]
[1745496837650,0.61455864,602.72,596.47,0.93363576]
[1745496837850,0.61455864,602.72,596.48,0.93363576]
[1745496838052,0.61455864,602.72,596.49,0.93363576]
[1745496838249,0.29083008,602.71,596.5,0.93363576]
[1745496838453,0.29083008,602.71,596.51,0.62581872]
[1745496838649,0.29083008,602.71,596.45,0.29083008]
[1745496838847,0.29083008,602.71,596.46,0.93391165]
[1745496839049,0.29083008,602.71,596.47,0.93391165]
[1745496839250,0.29083008,602.71,596.48,0.93391165]
[1745496839452,0.29083008,602.71,596.49,0.62608983]
[1745496839649,0.29083008,602.71,596.5,0.93391]
[1745496839850,0.29083008,602.71,596.51,0.93391]
[1745496840053,0.61455864,602.72,596.52,0.62608983]
[1745496840554,0.61455864,602.72,596.53,0.9338982]
[1745496840853,0.61455864,602.72,596.54,0.62608983]
[1745496841053,0.61455864,602.72,596.43,1.228]
[1745496841251,0.290824,602.71,596.44,0.9340465]
[1745496841551,0.290824,602.71,596.48,0.290824]
[1745496841856,0.290824,602.71,596.49,0.9340465]
[1745496842064,0.290824,602.71,596.5,0.3078099]
[1745496842250,0.290824,602.71,596.48,0.290824]
[1745496842452,0.290824,602.71,596.49,0.30783109]
[1745496842650,0.290824,602.71,596.48,0.290824]
[1745496842852,0.290824,602.71,596.49,0.30783048]
[1745496843053,0.61455864,603.3,596.43,1.228]
[1745496843251,0.61455864,603.3,596.5,1.248]
[1745496844353,0.2907669,603.29,596.5,1.248]
[1745496845251,0.2907669,603.29,596.51,1.35]
[1745496846053,0.61455864,603.3,596.51,1.35]
[1745496847252,0.29076568,603.29,596.51,1.35]
[1745496849253,0.61455864,604.32,596.51,1.35]
[1745496850253,0.29064183,604.31,596.51,1.35]
[1745496851956,0.29064183,604.31,596.52,1.698]
[1745496852153,0.61455864,604.32,596.52,1.698]
[1745496852759,0.61455864,603.14,596.52,1.698]
[1745496853256,0.2907839,603.13,596.52,1.698]
[1745496854057,0.2907839,603.13,596.53,0.30781249]
[1745496854258,0.2907839,603.13,596.52,1.698]
[1745496854555,0.2907839,603.13,596.53,0.30781178]
[1745496854957,0.61455864,603.14,596.53,0.30781178]
[1745496855258,0.2907839,603.12,596.53,0.30781178]
[1745496855459,0.2907839,603.12,596.52,1.698]
[1745496858255,0.61455864,603.28,596.52,0.6509953]
[1745496859256,0.2907669,603.27,596.53,0.30780786]
[1745496859761,0.2907669,603.27,596.52,0.6509953]
[1745496859958,0.2907669,603.27,596.53,0.30781079]
[1745496860462,0.2907669,603.27,596.52,0.6509953]
[1745496860862,0.2907669,603.27,596.52,0.0425026]
[1745496861159,0.61455864,603.28,596.52,0.0425026]
[1745496861659,0.274485,603.27,596.52,0.0425026]
[1745496861959,0.274485,603.26,596.52,0.0425026]
[1745496862158,0.274485,603.25,596.52,0.0425026]
[1745496862364,0.274485,603.24,596.52,0.0425026]
[1745496862661,0.274485,603.23,596.52,0.0425026]
[1745496862859,0.274485,603.22,596.52,0.0425026]
[1745496863059,0.274485,603.21,596.52,0.0425026]